[Event "*** Titled Tuesday Blitz"]
[Site "Chess.com"]
[Date "2020.01.07"]
[Round "6"]
[White "ChessSkool"]
[Black "TST2014"]
[Result "1-0"]
[WhiteElo "2683"]
[BlackElo "2507"]
[TimeControl "180+2"]
[EndTime "14:26:56 PST"]
[Termination "ChessSkool won on time"]

1. d4 {[%clk 0:03:01.9]} 1... Nf6 {[%clk 0:03:00.1]} 2. c4 {[%clk 0:03:01.1]}
2... d6 {[%clk 0:03:01]} 3. Nf3 {[%clk 0:03:02]} 3... Nbd7 {[%clk 0:03:01.3]} 4.
Nc3 {[%clk 0:03:03.6]} 4... e5 {[%clk 0:03:02.3]} 5. g3 {[%clk 0:03:04.2]} 5...
Be7 {[%clk 0:03:01.4]} 6. Bg2 {[%clk 0:03:05.4]} 6... c6 {[%clk 0:03:02.5]} 7.
O-O {[%clk 0:03:06.1]} 7... O-O {[%clk 0:03:03.2]} 8. h3 {[%clk 0:03:01.5]} 8...
Re8 {[%clk 0:03:01.6]} 9. e4 {[%clk 0:03:00.5]} 9... a6 {[%clk 0:03:01.1]} 10.
Be3 {[%clk 0:02:50.5]} 10... b5 {[%clk 0:03:01.1]} 11. Qc2 {[%clk 0:02:45.4]}
11... Bb7 {[%clk 0:02:59.5]} 12. Rfd1 {[%clk 0:02:29.5]} 12... Qc7 {[%clk
0:02:56.6]} 13. Rac1 {[%clk 0:01:45.8]} 13... b4 {[%clk 0:02:52.8]} 14. Na4
{[%clk 0:01:43.8]} 14... c5 {[%clk 0:02:52.4]} 15. d5 {[%clk 0:01:43.8]} 15...
h6 {[%clk 0:02:46]} 16. a3 {[%clk 0:01:40.6]} 16... a5 {[%clk 0:02:46.8]} 17. b3
{[%clk 0:01:37.8]} 17... Bf8 {[%clk 0:02:41.1]} 18. Ne1 {[%clk 0:01:38.9]} 18...
g6 {[%clk 0:02:40.7]} 19. Nd3 {[%clk 0:01:40]} 19... Bg7 {[%clk 0:02:42.1]} 20.
Rf1 {[%clk 0:01:24.2]} 20... Nb8 {[%clk 0:02:29.2]} 21. Rce1 {[%clk 0:01:17.4]}
21... Na6 {[%clk 0:02:30.1]} 22. Nab2 {[%clk 0:01:13.9]} 22... bxa3 {[%clk
0:02:30]} 23. Na4 {[%clk 0:01:15.3]} 23... Nb4 {[%clk 0:02:31.3]} 24. Qd2 {[%clk
0:01:14.2]} 24... Bc8 {[%clk 0:02:27.6]} 25. Ra1 {[%clk 0:01:14.6]} 25... a2
{[%clk 0:02:27.7]} 26. Nxb4 {[%clk 0:01:09.7]} 26... axb4 {[%clk 0:02:27.2]} 27.
Rxa2 {[%clk 0:01:11]} 27... Bd7 {[%clk 0:02:27.9]} 28. Rfa1 {[%clk 0:01:12.5]}
28... Ra5 {[%clk 0:02:26.2]} 29. Nb2 {[%clk 0:01:10.7]} 29... Rea8 {[%clk
0:02:26.3]} 30. Nd3 {[%clk 0:01:09]} 30... Ne8 {[%clk 0:02:04.1]} 31. Rxa5
{[%clk 0:00:57.2]} 31... Rxa5 {[%clk 0:02:04.6]} 32. Rxa5 {[%clk 0:00:59.1]}
32... Qxa5 {[%clk 0:02:05.2]} 33. Bxh6 {[%clk 0:00:55.4]} 33... Bxh6 {[%clk
0:02:04]} 34. Qxh6 {[%clk 0:00:57.3]} 34... Qa2 {[%clk 0:02:05]} 35. Nc1 {[%clk
0:00:56]} 35... Qc2 {[%clk 0:02:02.4]} 36. Qe3 {[%clk 0:00:52.9]} 36... Nf6
{[%clk 0:01:51]} 37. Kh2 {[%clk 0:00:47.8]} 37... Bg4 {[%clk 0:01:49.4]} 38. f3
{[%clk 0:00:30.6]} 38... Bc8 {[%clk 0:01:47]} 39. g4 {[%clk 0:00:25.1]} 39...
Kg7 {[%clk 0:01:47.2]} 40. Kg3 {[%clk 0:00:25.8]} 40... Nh7 {[%clk 0:01:39.4]}
41. Bf1 {[%clk 0:00:22.9]} 41... f6 {[%clk 0:01:39.4]} 42. h4 {[%clk 0:00:23.2]}
42... g5 {[%clk 0:01:36.7]} 43. h5 {[%clk 0:00:21.7]} 43... Nf8 {[%clk 0:01:37]}
44. Bd3 {[%clk 0:00:22.9]} 44... Qc3 {[%clk 0:01:29.7]} 45. Kf2 {[%clk
0:00:21.9]} 45... Nd7 {[%clk 0:01:28.5]} 46. Be2 {[%clk 0:00:12.8]} 46... Qb2
{[%clk 0:01:25.9]} 47. Ke1 {[%clk 0:00:13]} 47... Nb6 {[%clk 0:01:25.6]} 48. Qd2
{[%clk 0:00:13.2]} 48... Qa1 {[%clk 0:01:22.1]} 49. Bd1 {[%clk 0:00:14.3]} 49...
Bd7 {[%clk 0:01:17.9]} 50. Ne2 {[%clk 0:00:14.9]} 50... Kh6 {[%clk 0:01:09.8]}
51. Ng1 {[%clk 0:00:14.2]} 51... Nxc4 {[%clk 0:01:04.7]} 52. bxc4 {[%clk
0:00:14.7]} 52... b3 {[%clk 0:01:06.2]} 53. Ne2 {[%clk 0:00:09.4]} 53... b2
{[%clk 0:01:07.3]} 54. Nc3 {[%clk 0:00:10.2]} 54... b1=Q {[%clk 0:00:55.8]} 55.
Nxb1 {[%clk 0:00:11.2]} 55... Qxb1 {[%clk 0:00:57.5]} 56. Ke2 {[%clk 0:00:10.2]}
56... Qa1 {[%clk 0:00:47]} 57. Bc2 {[%clk 0:00:10.5]} 57... Bc8 {[%clk 0:00:45]}
58. Qe3 {[%clk 0:00:09.3]} 58... Ba6 {[%clk 0:00:45.5]} 59. Qb3 {[%clk
0:00:07.4]} 59... Qd4 {[%clk 0:00:45]} 60. Bd3 {[%clk 0:00:08.1]} 60... Qg1
{[%clk 0:00:45.3]} 61. Qb8 {[%clk 0:00:07.8]} 61... Qg2+ {[%clk 0:00:45.6]} 62.
Ke1 {[%clk 0:00:06.9]} 62... Qg1+ {[%clk 0:00:46.1]} 63. Kd2 {[%clk 0:00:06.2]}
63... Qf2+ {[%clk 0:00:45.8]} 64. Kc3 {[%clk 0:00:05.5]} 64... Qe1+ {[%clk
0:00:46.7]} 65. Kc2 {[%clk 0:00:05.5]} 65... Qf2+ {[%clk 0:00:21.5]} 66. Kb3
{[%clk 0:00:06.7]} 66... Bxc4+ {[%clk 0:00:22.3]} 67. Bxc4 {[%clk 0:00:07.2]}
67... Qxf3+ {[%clk 0:00:22.6]} 68. Ka4 {[%clk 0:00:08.1]} 68... Qd1+ {[%clk
0:00:15.1]} 69. Ka5 {[%clk 0:00:08.5]} 69... Qa1+ {[%clk 0:00:16]} 70. Kb6
{[%clk 0:00:09.5]} 70... Qb2+ {[%clk 0:00:15.1]} 71. Bb5 {[%clk 0:00:10.6]}
71... Kg7 {[%clk 0:00:16.4]} 72. Qc7+ {[%clk 0:00:10.9]} 72... Kh6 {[%clk
0:00:17.3]} 73. Qd8 {[%clk 0:00:11.8]} 73... Kg7 {[%clk 0:00:17]} 74. Qe7+
{[%clk 0:00:12.8]} 74... Kg8 {[%clk 0:00:18.4]} 75. h6 {[%clk 0:00:13.2]} 75...
Qxb5+ {[%clk 0:00:08.1]} 76. Kxb5 {[%clk 0:00:14]} 1-0

[Event "*** Titled Tuesday Blitz"]
[Site "Chess.com"]
[Date "2020.01.07"]
[Round "6"]
[White "volcanoexplorer"]
[Black "Orest_Vovk"]
[Result "1/2-1/2"]
[WhiteElo "2553"]
[BlackElo "2435"]
[TimeControl "180+2"]
[EndTime "14:27:07 PST"]
[Termination "Game drawn by repetition"]

1. e4 {[%clk 0:03:01.9]} 1... Nc6 {[%clk 0:03:00.4]} 2. Nf3 {[%clk 0:03:02.5]}
2... f5 {[%clk 0:03:01]} 3. exf5 {[%clk 0:02:47.4]} 3... d5 {[%clk 0:03:02.1]}
4. Bb5 {[%clk 0:02:48.3]} 4... Bxf5 {[%clk 0:03:02.9]} 5. Nd4 {[%clk 0:02:31.2]}
5... Qd7 {[%clk 0:02:24.7]} 6. Qf3 {[%clk 0:02:00.3]} 6... Be4 {[%clk
0:02:13.5]} 7. Qc3 {[%clk 0:01:59.2]} 7... a6 {[%clk 0:01:52.4]} 8. Bxc6 {[%clk
0:01:47.9]} 8... bxc6 {[%clk 0:01:52.6]} 9. f3 {[%clk 0:01:49.4]} 9... Bg6
{[%clk 0:01:42.9]} 10. Nxc6 {[%clk 0:01:34.3]} 10... Qe6+ {[%clk 0:01:25.1]} 11.
Kf2 {[%clk 0:01:25.6]} 11... Qd6 {[%clk 0:01:21.2]} 12. d4 {[%clk 0:01:20.6]}
12... Nf6 {[%clk 0:01:07.3]} 13. Ne5 {[%clk 0:01:02.1]} 13... e6 {[%clk
0:00:38.3]} 14. Bf4 {[%clk 0:01:02.2]} 14... Qb6 {[%clk 0:00:27]} 15. Nd2 {[%clk
0:00:37.4]} 15... Bd6 {[%clk 0:00:21.2]} 16. Nb3 {[%clk 0:00:34.7]} 16... O-O
{[%clk 0:00:17.8]} 17. g3 {[%clk 0:00:26.3]} 17... Rad8 {[%clk 0:00:09.2]} 18.
Rhe1 {[%clk 0:00:26.5]} 18... Nh5 {[%clk 0:00:08.2]} 19. Bg5 {[%clk 0:00:23.6]}
19... Nf6 {[%clk 0:00:06.2]} 20. Kg2 {[%clk 0:00:21.9]} 20... Qa7 {[%clk
0:00:04.5]} 21. Nc5 {[%clk 0:00:21.3]} 21... Rde8 {[%clk 0:00:04.3]} 22. Nxg6
{[%clk 0:00:21.4]} 22... hxg6 {[%clk 0:00:05]} 23. Nxe6 {[%clk 0:00:22.8]} 23...
Rf7 {[%clk 0:00:05.1]} 24. Nf4 {[%clk 0:00:19.5]} 24... Rfe7 {[%clk 0:00:06.1]}
25. Rxe7 {[%clk 0:00:19.8]} 25... Rxe7 {[%clk 0:00:08]} 26. Bxf6 {[%clk
0:00:19.8]} 26... gxf6 {[%clk 0:00:08.5]} 27. Qd3 {[%clk 0:00:20.5]} 27... g5
{[%clk 0:00:08.3]} 28. Nxd5 {[%clk 0:00:17.9]} 28... Rf7 {[%clk 0:00:08.3]} 29.
Qg6+ {[%clk 0:00:18.4]} 29... Kf8 {[%clk 0:00:09.4]} 30. c3 {[%clk 0:00:14.8]}
30... Qb7 {[%clk 0:00:10]} 31. Nxf6 {[%clk 0:00:05]} 31... Qxb2+ {[%clk
0:00:10.2]} 32. Kh3 {[%clk 0:00:06.5]} 32... Qxa1 {[%clk 0:00:11]} 33. Qg8+
{[%clk 0:00:07.7]} 33... Ke7 {[%clk 0:00:12.1]} 34. Nd5+ {[%clk 0:00:09.3]}
34... Ke6 {[%clk 0:00:13.5]} 35. Qg6+ {[%clk 0:00:07]} 35... Kxd5 {[%clk
0:00:13.4]} 36. Qxf7+ {[%clk 0:00:08.4]} 36... Kc6 {[%clk 0:00:15.1]} 37. Qc4+
{[%clk 0:00:08.8]} 37... Kb7 {[%clk 0:00:15.6]} 38. Qd5+ {[%clk 0:00:10.2]}
38... Ka7 {[%clk 0:00:16.7]} 39. Qxg5 {[%clk 0:00:11]} 39... Qxc3 {[%clk
0:00:16.1]} 40. Qd5 {[%clk 0:00:12.3]} 40... Qc2 {[%clk 0:00:14.2]} 41. f4
{[%clk 0:00:09.1]} 41... Qf2 {[%clk 0:00:14.1]} 42. f5 {[%clk 0:00:08.4]} 42...
Qf1+ {[%clk 0:00:14.5]} 43. Kh4 {[%clk 0:00:08.7]} 43... Qe2 {[%clk 0:00:15.6]}
44. h3 {[%clk 0:00:05.3]} 44... Qe7+ {[%clk 0:00:15.1]} 45. Kg4 {[%clk
0:00:06.2]} 45... Qg7+ {[%clk 0:00:15.9]} 46. Kh5 {[%clk 0:00:07.8]} 46... Qxg3
{[%clk 0:00:16.4]} 47. f6 {[%clk 0:00:07.8]} 47... Qxh3+ {[%clk 0:00:17]} 48.
Kg6 {[%clk 0:00:09.3]} 48... Qg4+ {[%clk 0:00:17.6]} 49. Kf7 {[%clk 0:00:08.9]}
49... Qd7+ {[%clk 0:00:18.4]} 50. Kg6 {[%clk 0:00:09.9]} 50... Qg4+ {[%clk
0:00:19.5]} 51. Kf7 {[%clk 0:00:11.1]} 51... Qg3 {[%clk 0:00:19.4]} 52. a4
{[%clk 0:00:09.4]} 52... Qh4 {[%clk 0:00:15.3]} 53. Ke6 {[%clk 0:00:05.8]} 53...
Qh6 {[%clk 0:00:12.6]} 54. Qe4 {[%clk 0:00:04.6]} 54... Qf8 {[%clk 0:00:11.7]}
55. Qg6 {[%clk 0:00:02.7]} 55... Qc8+ {[%clk 0:00:11.2]} 56. Kd5 {[%clk
0:00:03.9]} 56... Qb7+ {[%clk 0:00:12]} 57. Ke6 {[%clk 0:00:05.3]} 57... Qb3+
{[%clk 0:00:12.2]} 58. Kd7 {[%clk 0:00:06.1]} 58... Qxa4+ {[%clk 0:00:13]} 59.
Kc8 {[%clk 0:00:06.3]} 59... Qxd4 {[%clk 0:00:11.1]} 60. Qg2 {[%clk 0:00:06.1]}
60... Qb6 {[%clk 0:00:11.2]} 61. f7 {[%clk 0:00:07.4]} 61... Qb8+ {[%clk
0:00:10.4]} 62. Kd7 {[%clk 0:00:08.8]} 62... Qb7 {[%clk 0:00:10.4]} 63. Qf2+
{[%clk 0:00:04.3]} 63... Qb6 {[%clk 0:00:11.6]} 64. Qe2 {[%clk 0:00:05.3]} 64...
Bc5 {[%clk 0:00:10.4]} 65. Qc4 {[%clk 0:00:04.9]} 65... Qd6+ {[%clk 0:00:10.6]}
66. Kc8 {[%clk 0:00:06.3]} 66... Qe7 {[%clk 0:00:07.6]} 67. Qd5 {[%clk
0:00:05.4]} 67... Qf8+ {[%clk 0:00:03.8]} 68. Kxc7 {[%clk 0:00:06.8]} 68... Bb6+
{[%clk 0:00:04.7]} 69. Kd7 {[%clk 0:00:04.8]} 69... a5 {[%clk 0:00:04.2]} 70.
Ke6 {[%clk 0:00:04.4]} 70... Bc5 {[%clk 0:00:04.1]} 71. Qd7+ {[%clk 0:00:05.4]}
71... Kb6 {[%clk 0:00:05.1]} 72. Qe8 {[%clk 0:00:05.2]} 72... Bb4 {[%clk
0:00:04.9]} 73. Kd5 {[%clk 0:00:05.3]} 73... Qc5+ {[%clk 0:00:04.8]} 74. Ke6
{[%clk 0:00:06.9]} 74... Qd6+ {[%clk 0:00:05.8]} 75. Kf5 {[%clk 0:00:08.2]}
75... Qc5+ {[%clk 0:00:06.2]} 76. Ke6 {[%clk 0:00:09.5]} 76... Qc6+ {[%clk
0:00:07.2]} 77. Kf5 {[%clk 0:00:10.2]} 77... Qc5+ {[%clk 0:00:07.7]} 78. Ke6
{[%clk 0:00:11.5]} 1/2-1/2

[Event "*** Titled Tuesday Blitz"]
[Site "Chess.com"]
[Date "2020.01.07"]
[Round "6"]
[White "Quiet_Desperation"]
[Black "ChainsOfFantasia"]
[Result "1/2-1/2"]
[WhiteElo "2379"]
[BlackElo "2510"]
[TimeControl "180+2"]
[EndTime "14:27:07 PST"]
[Termination "Game drawn - insufficient material"]

1. e4 {[%clk 0:03:01.9]} 1... e6 {[%clk 0:02:58.2]} 2. d4 {[%clk 0:03:02.8]}
2... d5 {[%clk 0:03:00.1]} 3. Nc3 {[%clk 0:03:04.4]} 3... Nf6 {[%clk 0:03:00.6]}
4. e5 {[%clk 0:03:06]} 4... Nfd7 {[%clk 0:03:01.2]} 5. f4 {[%clk 0:03:07.6]}
5... c5 {[%clk 0:03:03.1]} 6. Nf3 {[%clk 0:03:08.9]} 6... Nc6 {[%clk 0:03:05]}
7. Be3 {[%clk 0:03:09.2]} 7... a6 {[%clk 0:03:06.5]} 8. Qd2 {[%clk 0:03:10.4]}
8... b5 {[%clk 0:03:07.1]} 9. Be2 {[%clk 0:03:08.6]} 9... Qb6 {[%clk 0:03:06.7]}
10. Nd1 {[%clk 0:03:06.4]} 10... b4 {[%clk 0:03:06.4]} 11. c3 {[%clk 0:03:05.3]}
11... a5 {[%clk 0:03:07.2]} 12. O-O {[%clk 0:03:05.6]} 12... Ba6 {[%clk
0:03:07.5]} 13. Kh1 {[%clk 0:02:59]} 13... Bxe2 {[%clk 0:03:07.5]} 14. Qxe2
{[%clk 0:03:00.2]} 14... Be7 {[%clk 0:03:04.2]} 15. Nf2 {[%clk 0:02:54.6]} 15...
cxd4 {[%clk 0:03:01.5]} 16. cxd4 {[%clk 0:02:49.3]} 16... Qa6 {[%clk 0:03:00.1]}
17. Qd2 {[%clk 0:02:43.8]} 17... O-O {[%clk 0:03:00.1]} 18. g4 {[%clk 0:02:33]}
18... a4 {[%clk 0:02:55.5]} 19. f5 {[%clk 0:02:32.7]} 19... Nb6 {[%clk
0:02:44.5]} 20. f6 {[%clk 0:02:26.9]} 20... gxf6 {[%clk 0:02:44]} 21. Bh6 {[%clk
0:02:26.3]} 21... fxe5 {[%clk 0:02:01.8]} 22. dxe5 {[%clk 0:02:12.5]} 22... Nc4
{[%clk 0:01:39]} 23. Qf4 {[%clk 0:02:07.4]} 23... Nxb2 {[%clk 0:01:40]} 24. Bg5
{[%clk 0:01:26.7]} 24... Qc4 {[%clk 0:01:29.7]} 25. Qd2 {[%clk 0:01:23]} 25...
Qc3 {[%clk 0:01:16.9]} 26. Qf4 {[%clk 0:01:23.7]} 26... Nd3 {[%clk 0:01:11.5]}
27. Nxd3 {[%clk 0:01:23.2]} 27... Qxd3 {[%clk 0:01:13.4]} 28. Bxe7 {[%clk
0:01:10.3]} 28... Nxe7 {[%clk 0:01:15.3]} 29. Qg5+ {[%clk 0:01:11.6]} 29... Ng6
{[%clk 0:01:16.2]} 30. h4 {[%clk 0:01:12.9]} 30... Rac8 {[%clk 0:01:07.8]} 31.
h5 {[%clk 0:01:11.9]} 31... Rc2 {[%clk 0:01:08.6]} 32. hxg6 {[%clk 0:01:10.6]}
32... fxg6 {[%clk 0:01:07.6]} 33. Qe7 {[%clk 0:00:53.4]} 33... Qe2 {[%clk
0:01:00.7]} 34. Qxf8+ {[%clk 0:00:49.5]} 34... Kxf8 {[%clk 0:00:57.5]} 35. Nd4+
{[%clk 0:00:50.7]} 35... Ke7 {[%clk 0:00:45.8]} 36. Nxe2 {[%clk 0:00:50.9]}
36... Rxe2 {[%clk 0:00:47.7]} 37. Rfe1 {[%clk 0:00:49.7]} 37... Rc2 {[%clk
0:00:44.4]} 38. Rab1 {[%clk 0:00:47.2]} 38... Rc4 {[%clk 0:00:43.4]} 39. Rec1
{[%clk 0:00:36.5]} 39... Rxg4 {[%clk 0:00:42.2]} 40. Rc7+ {[%clk 0:00:37.4]}
40... Kd8 {[%clk 0:00:42.5]} 41. Rxh7 {[%clk 0:00:35]} 41... Re4 {[%clk
0:00:38.7]} 42. Rf1 {[%clk 0:00:33.5]} 42... Ke8 {[%clk 0:00:38.4]} 43. Rc1
{[%clk 0:00:26.6]} 43... Rc4 {[%clk 0:00:34]} 44. Rxc4 {[%clk 0:00:17.7]} 44...
dxc4 {[%clk 0:00:35.9]} 45. Rh4 {[%clk 0:00:18.7]} 45... b3 {[%clk 0:00:28.2]}
46. Rxc4 {[%clk 0:00:15.1]} 46... b2 {[%clk 0:00:29.3]} 47. Rb4 {[%clk
0:00:16.1]} 47... a3 {[%clk 0:00:30.4]} 48. Kg2 {[%clk 0:00:17.2]} 48... Kd7
{[%clk 0:00:31]} 49. Kf2 {[%clk 0:00:18.6]} 49... g5 {[%clk 0:00:31.2]} 50. Ke2
{[%clk 0:00:19.9]} 50... Kc6 {[%clk 0:00:29.9]} 51. Kd2 {[%clk 0:00:21.1]} 51...
Kd5 {[%clk 0:00:29.6]} 52. Kc2 {[%clk 0:00:21.2]} 52... Kxe5 {[%clk 0:00:31]}
53. Rb3 {[%clk 0:00:21.8]} 53... g4 {[%clk 0:00:31.1]} 54. Rxa3 {[%clk 0:00:23]}
54... Kf4 {[%clk 0:00:32.2]} 55. Kxb2 {[%clk 0:00:21.6]} 55... g3 {[%clk
0:00:32.7]} 56. Ra4+ {[%clk 0:00:22.9]} 56... Kf3 {[%clk 0:00:33.7]} 57. Ra3+
{[%clk 0:00:22.6]} 57... Kf2 {[%clk 0:00:35.1]} 58. Rxg3 {[%clk 0:00:19.4]}
58... Kxg3 {[%clk 0:00:37]} 59. Kc3 {[%clk 0:00:20.6]} 59... e5 {[%clk
0:00:25.4]} 60. a4 {[%clk 0:00:15.7]} 60... e4 {[%clk 0:00:18.3]} 61. Kd4 {[%clk
0:00:15]} 61... Kf3 {[%clk 0:00:18.2]} 62. a5 {[%clk 0:00:16.5]} 62... e3 {[%clk
0:00:19.5]} 63. a6 {[%clk 0:00:18.1]} 63... e2 {[%clk 0:00:21.1]} 64. a7 {[%clk
0:00:19.6]} 64... e1=Q {[%clk 0:00:22.9]} 65. a8=Q+ {[%clk 0:00:20.9]} 65... Kg3
{[%clk 0:00:23.6]} 66. Qg8+ {[%clk 0:00:20.4]} 66... Kf3 {[%clk 0:00:24.1]} 67.
Qf7+ {[%clk 0:00:21.2]} 67... Kg2 {[%clk 0:00:24.6]} 68. Qg6+ {[%clk 0:00:22]}
68... Kh1 {[%clk 0:00:25.3]} 69. Qh5+ {[%clk 0:00:22.2]} 69... Kg1 {[%clk
0:00:26.2]} 70. Qg4+ {[%clk 0:00:23]} 70... Kf1 {[%clk 0:00:26.5]} 71. Qh3+
{[%clk 0:00:22]} 71... Kf2 {[%clk 0:00:27]} 72. Qh4+ {[%clk 0:00:22.8]} 72...
Ke2 {[%clk 0:00:27.9]} 73. Qe4+ {[%clk 0:00:21.4]} 73... Kf1 {[%clk 0:00:28.3]}
74. Qh1+ {[%clk 0:00:19.4]} 74... Kf2 {[%clk 0:00:29.1]} 75. Qh2+ {[%clk
0:00:20.3]} 75... Kf3 {[%clk 0:00:27.7]} 76. Qh3+ {[%clk 0:00:20.5]} 76... Kf4
{[%clk 0:00:26.4]} 77. Qh6+ {[%clk 0:00:18.9]} 77... Kg4 {[%clk 0:00:26.1]} 78.
Qg6+ {[%clk 0:00:19.4]} 78... Kf3 {[%clk 0:00:26.1]} 79. Qh5+ {[%clk 0:00:19.1]}
79... Kf2 {[%clk 0:00:26.5]} 80. Qh4+ {[%clk 0:00:19.4]} 80... Ke2 {[%clk
0:00:27.6]} 81. Qg4+ {[%clk 0:00:19.4]} 81... Kf1 {[%clk 0:00:27.5]} 82. Qf3+
{[%clk 0:00:19.4]} 82... Qf2+ {[%clk 0:00:28]} 83. Qxf2+ {[%clk 0:00:20.9]}
83... Kxf2 {[%clk 0:00:29.9]} 1/2-1/2

[Event "*** Titled Tuesday Blitz"]
[Site "Chess.com"]
[Date "2020.01.07"]
[Round "6"]
[White "Chessalary"]
[Black "allvim"]
[Result "1-0"]
[WhiteElo "2095"]
[BlackElo "2349"]
[TimeControl "180+2"]
[EndTime "14:27:09 PST"]
[Termination "Chessalary won by resignation"]

1. e4 {[%clk 0:03:00.1]} 1... c5 {[%clk 0:02:59.8]} 2. Nf3 {[%clk 0:03:00.3]}
2... d6 {[%clk 0:02:54.9]} 3. d4 {[%clk 0:03:01.2]} 3... cxd4 {[%clk 0:02:56.8]}
4. Nxd4 {[%clk 0:03:03.1]} 4... Nf6 {[%clk 0:02:55.5]} 5. Nc3 {[%clk 0:03:04.5]}
5... a6 {[%clk 0:02:55.9]} 6. Bc4 {[%clk 0:03:05.8]} 6... e6 {[%clk 0:02:45.4]}
7. Bb3 {[%clk 0:03:06.2]} 7... Be7 {[%clk 0:02:45.8]} 8. g4 {[%clk 0:02:53.2]}
8... h6 {[%clk 0:02:17.3]} 9. Be3 {[%clk 0:02:51.8]} 9... Nc6 {[%clk 0:02:17.6]}
10. Rg1 {[%clk 0:02:47.5]} 10... Bd7 {[%clk 0:02:14.2]} 11. h3 {[%clk
0:02:42.1]} 11... Nxd4 {[%clk 0:02:07.5]} 12. Qxd4 {[%clk 0:02:39]} 12... Qc7
{[%clk 0:01:57.5]} 13. O-O-O {[%clk 0:02:37.4]} 13... Bc6 {[%clk 0:01:50.8]} 14.
f4 {[%clk 0:02:35.8]} 14... O-O-O {[%clk 0:01:40.9]} 15. Qa7 {[%clk 0:02:22.5]}
15... Qb8 {[%clk 0:01:38.2]} 16. Qb6 {[%clk 0:02:19.4]} 16... Qc7 {[%clk
0:01:36.2]} 17. Qa7 {[%clk 0:02:19.7]} 17... Qb8 {[%clk 0:01:37.2]} 18. Qd4
{[%clk 0:02:18.3]} 18... Rhg8 {[%clk 0:01:10.1]} 19. Qb4 {[%clk 0:02:13.5]}
19... Rd7 {[%clk 0:01:00.2]} 20. Qa5 {[%clk 0:01:57]} 20... Nxe4 {[%clk
0:00:55.7]} 21. Nxe4 {[%clk 0:01:57.9]} 21... Bxe4 {[%clk 0:00:57.6]} 22. f5
{[%clk 0:01:54]} 22... d5 {[%clk 0:00:53.6]} 23. fxe6 {[%clk 0:01:37.7]} 23...
fxe6 {[%clk 0:00:55.5]} 24. Rd4 {[%clk 0:01:38.5]} 24... Bd8 {[%clk 0:00:49.8]}
25. Qb4 {[%clk 0:01:31.6]} 25... Be7 {[%clk 0:00:46.3]} 26. Qa5 {[%clk
0:01:30.8]} 26... Qc7 {[%clk 0:00:47.4]} 27. Qd2 {[%clk 0:01:06.5]} 27... Bc5
{[%clk 0:00:45.6]} 28. Rxe4 {[%clk 0:00:52.1]} 28... dxe4 {[%clk 0:00:34.3]} 29.
Bxe6 {[%clk 0:00:52.6]} 29... Rd8 {[%clk 0:00:29.4]} 30. Bxc5 {[%clk 0:00:39.9]}
30... Qxc5 {[%clk 0:00:31.3]} 31. Rd1 {[%clk 0:00:40.4]} 31... Qe7 {[%clk
0:00:27.3]} 32. Bxd7+ {[%clk 0:00:38.3]} 32... Rxd7 {[%clk 0:00:26.2]} 33. Qc3+
{[%clk 0:00:39.2]} 33... Rc7 {[%clk 0:00:27.3]} 34. Qb3 {[%clk 0:00:34.3]} 34...
b5 {[%clk 0:00:23.7]} 35. Qg8+ {[%clk 0:00:32.9]} 35... Kb7 {[%clk 0:00:25]} 36.
Qd5+ {[%clk 0:00:34.1]} 36... Kb8 {[%clk 0:00:24.2]} 37. Re1 {[%clk 0:00:32]}
37... e3 {[%clk 0:00:22.4]} 38. Qd3 {[%clk 0:00:21.3]} 38... Qg5 {[%clk
0:00:21.8]} 39. Qxe3 {[%clk 0:00:19.7]} 39... Qxe3+ {[%clk 0:00:20.3]} 40. Rxe3
{[%clk 0:00:21.6]} 40... Rf7 {[%clk 0:00:22.2]} 41. Kd2 {[%clk 0:00:21.9]} 41...
Rf2+ {[%clk 0:00:22.3]} 42. Kd3 {[%clk 0:00:22.8]} 42... Rf7 {[%clk 0:00:20.3]}
43. Ke2 {[%clk 0:00:19.4]} 43... Kc8 {[%clk 0:00:21.1]} 44. Re6 {[%clk
0:00:19.4]} 44... Kb7 {[%clk 0:00:21.1]} 45. b3 {[%clk 0:00:19.7]} 45... a5
{[%clk 0:00:21.3]} 46. c4 {[%clk 0:00:19.9]} 46... bxc4 {[%clk 0:00:21.7]} 47.
bxc4 {[%clk 0:00:21.8]} 47... Rd7 {[%clk 0:00:23.6]} 48. Rg6 {[%clk 0:00:17.5]}
48... a4 {[%clk 0:00:23.4]} 49. Ke3 {[%clk 0:00:17.7]} 49... a3 {[%clk
0:00:24.2]} 50. c5 {[%clk 0:00:17.8]} 50... Kc7 {[%clk 0:00:24.7]} 51. Ke4
{[%clk 0:00:18.3]} 51... Rd2 {[%clk 0:00:24.2]} 52. Rxg7+ {[%clk 0:00:18.6]}
52... Kc6 {[%clk 0:00:25.2]} 53. Rg6+ {[%clk 0:00:15.2]} 53... Kxc5 {[%clk
0:00:26.4]} 54. Rxh6 {[%clk 0:00:16.6]} 54... Rxa2 {[%clk 0:00:28.3]} 55. Ra6
{[%clk 0:00:18]} 55... Ra1 {[%clk 0:00:28.1]} 56. h4 {[%clk 0:00:17.9]} 56... a2
{[%clk 0:00:29.1]} 57. g5 {[%clk 0:00:14.7]} 57... Re1+ {[%clk 0:00:20.1]} 58.
Kf5 {[%clk 0:00:15.5]} 58... a1=Q {[%clk 0:00:22]} 59. Rxa1 {[%clk 0:00:17.4]}
59... Rxa1 {[%clk 0:00:23.9]} 60. g6 {[%clk 0:00:16.7]} 60... Rf1+ {[%clk
0:00:23.5]} 61. Ke6 {[%clk 0:00:17.1]} 61... Re1+ {[%clk 0:00:21.8]} 62. Kf6
{[%clk 0:00:17.9]} 62... Kd6 {[%clk 0:00:21.5]} 63. h5 {[%clk 0:00:16.2]} 63...
Rf1+ {[%clk 0:00:21.6]} 64. Kg7 {[%clk 0:00:17.3]} 64... Ke7 {[%clk 0:00:22.1]}
65. h6 {[%clk 0:00:18.6]} 65... Rh1 {[%clk 0:00:06.7]} 66. h7 {[%clk 0:00:18.7]}
66... Ke6 {[%clk 0:00:07.6]} 67. h8=Q {[%clk 0:00:17.2]} 67... Rxh8 {[%clk
0:00:09.5]} 68. Kxh8 {[%clk 0:00:19.1]} 68... Kf6 {[%clk 0:00:11.4]} 69. g7
{[%clk 0:00:20.5]} 1-0